bitfinex/quotes_ETHUSD_20250329
["timestamp","ask_amount","ask_price","bid_price","bid_amount"]
[1743274102561,3.0,1831.4,1831.1,11.73962]
[1743274102875,4.13574005,1831.5,1831.2,13.01622875]
[1743274103071,3.0,1831.4,1831.2,13.01622875]
[1743274103482,3.0,1831.4,1831.2,7.55546875]
[1743274103775,3.0,1831.4,1831.2,13.01635875]
[1743274104882,6.88818957,1831.3,1831.2,13.01635875]
[1743274105687,6.88818957,1831.3,1831.2,7.55546875]
[1743274106563,6.88818957,1831.3,1831.2,8.93887463]
[1743274106564,3.88818957,1831.3,1831.2,8.93887463]
[1743274106894,3.0,1831.4,1831.3,5.46055]
[1743274109186,3.0,1831.4,1831.3,5.4606]
[1743274110490,3.0,1831.4,1831.2,7.55546875]
[1743274110655,3.88818957,1831.3,1831.2,7.55546875]
[1743274111763,12.34878957,1831.3,1831.2,7.55546875]
[1743274112094,5.46099,1831.2,1830.9,0.8208]
[1743274112293,3.88818957,1831.0,1830.9,6.28259]
[1743274113068,3.88818957,1831.0,1830.9,0.8208]
[1743274113274,3.88818957,1831.0,1830.8,19.30012875]
[1743274113783,12.070917,1830.9,1830.8,7.55546875]
[1743274113965,2.93073,1830.9,1830.8,7.55546875]
[1743274114166,9.34978957,1831.0,1830.8,7.55546875]
[1743274114400,4.489977,1830.9,1830.8,7.55546875]
[1743274115596,9.951767,1830.9,1830.8,7.55546875]
[1743274115819,5.46209,1830.8,1830.7,7.55546875]
[1743274116101,13.31460495,1830.8,1830.7,7.55546875]
[1743274116666,3.0,1830.4,1830.3,7.55546875]
[1743274116884,5.46374,1830.3,1830.1,7.55546875]
[1743274117107,9.35206957,1830.2,1830.1,7.55546875]
[1743274117609,12.35206957,1830.2,1830.1,7.55546875]
[1743274117804,5.4642,1830.1,1829.8,0.811]
[1743274118008,5.4642,1830.1,1829.8,9.85680452]
[1743274118176,11.09654,1830.7,1829.8,9.91145285]
[1743274118381,3.0,1830.6,1830.2,5.46377]
[1743274118594,3.88818957,1830.4,1830.2,13.01923875]
[1743274119000,5.463,1830.5,1830.2,7.55546875]
[1743274119378,3.0,1830.3,1830.2,7.55546875]
[1743274121207,3.0,1830.3,1830.2,8.93853363]
[1743274121412,3.0,1830.5,1830.2,14.40241363]
[1743274121615,3.0,1830.5,1830.2,8.93853363]
[1743274121913,3.55,1830.5,1830.2,7.55546875]
[1743274122084,9.01307,1830.5,1830.2,7.55546875]
[1743274123086,3.0,1830.4,1830.2,7.55546875]
[1743274123684,9.01307,1830.5,1830.2,7.55546875]
[1743274124116,14.47627,1830.5,1830.2,7.55546875]
[1743274124316,3.0,1830.3,1830.2,7.55546875]
[1743274126718,8.87173851,1830.3,1830.2,7.55546875]
[1743274126923,9.42173851,1830.3,1830.2,7.55546875]
[1743274127213,6.76589851,1830.3,1830.2,7.55546875]
[1743274127416,3.95815851,1830.3,1830.2,7.55546875]
[1743274127614,3.40815851,1830.3,1830.2,7.55546875]
[1743274128333,12.218524,1830.2,1829.8,6.27607]
[1743274128628,5.46418,1830.1,1829.8,15.76122863]
[1743274128789,15.06690968,1830.2,1829.8,15.76122863]
[1743274129235,4.13875968,1830.0,1829.8,7.55546875]
[1743274129386,17.91256,1829.9,1829.8,7.55546875]
[1743274129696,5.13453,1829.9,1829.8,7.55546875]
[1743274129895,10.5993,1829.9,1829.8,7.55546875]
[1743274130493,16.020578,1829.8,1829.4,13.84135875]
[1743274130693,3.0,1829.8,1829.5,13.02142875]
[1743274131102,8.46524,1829.8,1829.5,7.55546875]
[1743274131435,12.60399968,1829.8,1829.5,7.55546875]
[1743274132415,13.01286787,1829.8,1829.5,7.55546875]
[1743274132614,3.40886819,1829.8,1829.5,13.02123875]
[1743274132823,3.40886819,1829.8,1829.6,6.76778387]
[1743274133343,5.87184851,1830.3,1830.0,5.46447]
[1743274133519,3.0,1830.2,1830.0,13.01993875]
[1743274134422,3.40815851,1830.3,1830.0,13.01993875]
[1743274134720,3.40815851,1830.3,1830.1,6.28406]
[1743274134925,3.0,1830.3,1830.1,6.28406]
[1743274135858,3.0,1830.3,1830.1,0.8199]
[1743274136060,8.46368,1830.3,1830.1,0.8199]
[1743274136230,4.298161,1830.2,1830.0,7.55546875]
[1743274136431,3.0,1830.3,1830.0,13.01977875]
[1743274136757,3.0,1830.3,1830.0,18.48411875]
[1743274136959,3.4177468,1830.3,1830.0,20.41452063]
[1743274137141,3.4177468,1830.3,1830.0,14.95018063]
[1743274137547,3.4177468,1830.3,1830.1,7.55546875]
[1743274137863,8.8813568,1830.3,1830.1,7.55546875]
[1743274138033,8.46361,1830.3,1830.1,7.55546875]
[1743274138231,3.0,1830.3,1830.1,7.55546875]
[1743274138667,3.0,1830.3,1830.1,14.74471494]
[1743274138828,10.92621,1830.5,1830.2,5.46384]
[1743274138829,3.0,1830.4,1830.2,5.46384]
[1743274139033,6.89201018,1830.4,1830.2,5.46384]
[1743274139436,6.89201018,1830.4,1830.1,14.74466494]
[1743274139920,9.75500902,1831.3,1830.8,6.28198]
[1743274140140,9.75500902,1831.3,1830.9,5.46177]
[1743274140346,3.0,1831.2,1830.9,13.01723875]
[1743274141065,5.86299884,1831.3,1830.9,18.47884875]
[1743274141444,3.0,1831.2,1830.9,18.47884875]
[1743274142048,5.86299884,1831.3,1830.9,18.47884875]
[1743274142763,3.0,1831.2,1830.9,18.47884875]
[1743274143363,3.0,1831.2,1830.9,13.01707875]
[1743274143567,14.02854844,1831.2,1831.0,7.55546875]
[1743274143869,8.903077,1831.1,1831.0,7.55546875]
[1743274144451,12.453077,1831.1,1830.7,7.55546875]
[1743274144665,11.02854844,1831.2,1830.2,1.47446649]
[1743274144666,13.266448,1830.6,1830.3,7.55546875]
[1743274144816,7.13515656,1830.5,1830.3,13.01889875]
[1743274145345,7.13515656,1830.5,1830.3,7.55546875]
[1743274145553,7.13515656,1830.5,1830.3,13.01904875]
[1743274147029,7.13515656,1830.5,1830.3,7.55546875]
[1743274147640,3.0,1830.5,1830.3,7.55546875]
[1743274148861,3.0,1830.5,1830.0,0.8179]
[1743274148862,8.047465,1830.2,1830.0,0.8179]
[1743274149158,15.06256656,1830.3,1830.0,8.37336875]
[1743274149875,3.0,1830.2,1830.0,8.37336875]
[1743274150369,3.0,1830.2,1830.0,13.83781875]
[1743274151872,8.46391,1830.2,1830.0,8.37336875]
[1743274152176,8.46391,1830.2,1830.0,13.83770875]
[1743274152177,3.0,1830.2,1830.0,13.83770875]
[1743274153074,3.0,1830.2,1830.0,7.55546875]
[1743274153278,12.59933656,1830.1,1830.0,7.55546875]
[1743274153500,12.59933656,1830.1,1829.8,5.46504]
[1743274153501,8.46448,1830.0,1829.9,7.55546875]
[1743274153668,8.46448,1830.0,1829.7,0.8179]
[1743274153669,5.4649,1829.9,1829.7,7.55546875]
[1743274155584,9.01448,1830.0,1829.7,7.55546875]
[1743274156549,3.55,1830.0,1829.7,7.55546875]
[1743274156755,5.4633,1830.4,1830.1,5.46407]
[1743274156973,5.4633,1830.4,1830.0,5.46444]
[1743274157262,3.0,1830.2,1829.9,5.46471]
[1743274157460,3.0,1830.2,1829.9,5.46465]
[1743274157661,3.0,1830.2,1829.9,5.46459]
[1743274157888,3.0,1830.2,1829.9,12.1094273]
[1743274158096,3.0,1830.2,1829.9,19.66489605]
[1743274158497,3.0,1830.2,1829.9,19.66493605]
[1743274159001,3.0,1830.2,1829.9,14.20027605]
[1743274159298,4.54698476,1830.3,1829.9,8.73568605]
[1743274159501,4.54698476,1830.3,1830.0,11.80202861]
[1743274159798,3.0,1830.2,1830.0,11.80202861]
[1743274160705,3.0,1830.2,1830.0,6.33775861]
[1743274160861,0.0048408,1830.5,1830.1,0.759]
[1743274161183,3.89662955,1830.5,1830.1,1.68326804]
[1743274161487,9.76291772,1830.5,1830.1,7.14725804]
[1743274162085,3.89662955,1830.5,1830.3,5.46337]
[1743274162265,0.0048408,1830.5,1830.4,5.46328]
[1743274162588,0.0048408,1830.5,1830.4,13.83238166]
[1743274162753,0.0048408,1830.5,1830.4,15.70732392]
[1743274164293,0.0048408,1830.5,1830.4,21.33732392]
[1743274165285,0.0048408,1830.5,1830.4,21.33632392]
[1743274165664,0.0048408,1830.5,1830.4,15.70732392]
[1743274165869,0.0048408,1830.5,1830.4,21.33632392]
[1743274166286,0.0048408,1830.5,1830.4,15.70732392]
[1743274166685,0.0048408,1830.5,1830.4,21.33632392]
[1743274167890,0.0048408,1830.5,1830.4,15.70732392]
[1743274169995,0.0048408,1830.5,1830.4,21.33532392]
[1743274176664,0.28012771,1831.6,1831.0,0.7895]
[1743274176870,0.28012771,1831.6,1831.3,5.46042]
[1743274177210,3.28012771,1831.6,1831.3,5.46042]
[1743274177400,8.45975,1831.6,1831.3,5.46042]
[1743274177615,0.41223236,1831.8,1831.3,1.14673264]
[1743274177769,0.05,1831.9,1831.6,5.45969]
[1743274177969,0.05,1831.9,1831.6,13.01515875]
[1743274178172,3.05,1831.9,1831.6,7.55546875]
[1743274178488,10.96792,1831.9,1831.6,7.55546875]
[1743274178807,5.45919,1831.8,1831.6,7.55546875]
[1743274179099,3.0,1831.8,1831.6,7.55546875]
[1743274179276,5.50891,1831.9,1831.6,7.55546875]
[1743274179469,3.0,1831.8,1831.6,7.55546875]
[1743274179707,5.50891,1831.9,1831.6,7.55546875]
[1743274180498,3.0,1831.8,1831.6,7.55546875]
[1743274180701,3.0,1831.7,1831.6,7.55546875]
[1743274181689,3.0,1831.7,1831.5,7.55546875]
[1743274181897,8.45954,1831.7,1831.5,7.55546875]
[1743274182100,9.59502779,1831.6,1831.5,7.55546875]
[1743274182402,7.13532779,1831.8,1831.5,13.01516875]
[1743274182573,0.05,1831.9,1831.8,5.45911]
[1743274182773,0.05,1831.9,1831.8,6.21711]
[1743274183072,0.05,1831.9,1831.8,7.39021928]
[1743274186188,0.05,1831.9,1831.8,7.444801]
[1743274187404,0.05,1831.9,1831.8,15.00026975]
[1743274187612,0.05,1831.9,1831.8,14.94568803]
[1743274198542,5.50881,1831.9,1831.8,7.55546875]
[1743274198691,12.294186,1831.9,1831.8,7.55546875]
[1743274199039,3.05,1831.9,1831.8,7.55546875]
[1743274199224,3.05,1831.9,1831.8,13.01457875]
[1743274199396,3.05,1831.9,1831.8,7.55546875]
[1743274201530,3.05,1831.9,1831.8,14.31605262]
[1743274201531,3.93488274,1831.9,1831.8,14.31605262]
[1743274202520,0.05,1831.9,1831.8,14.31605262]
[1743274202726,0.05,1831.9,1831.8,15.12385262]
[1743274202924,0.1281497,1832.3,1832.2,6.26571]
[1743274203129,1.43121765,1832.9,1832.7,5.45639]
[1743274203336,1.43121765,1832.9,1832.8,7.42731905]
[1743274203497,15.84818739,1832.9,1832.8,7.42731905]
[1743274203697,10.39235739,1832.9,1832.8,7.42731905]
[1743274203936,5.31610039,1832.9,1832.8,7.42731905]
[1743274204107,6.88988274,1832.9,1832.8,7.42731905]
[1743274204429,5.45702,1832.5,1832.4,7.42731905]
[1743274204730,5.45702,1832.5,1832.0,0.7958]
[1743274204731,3.0,1832.3,1832.1,7.42731905]
[1743274204896,7.13088834,1832.2,1832.1,7.42731905]
[1743274205096,12.33710134,1832.2,1832.1,7.42731905]
[1743274205395,19.46363134,1832.2,1832.1,7.42731905]
[1743274205590,12.58879834,1832.2,1832.1,7.42731905]
[1743274205829,7.13088834,1832.2,1832.1,7.42731905]
[1743274206613,12.58879834,1832.2,1832.1,7.42731905]
[1743274207043,8.45849,1832.1,1831.6,11.07865]
[1743274207259,4.13088834,1831.9,1831.7,12.88670905]
[1743274207423,12.58928834,1832.1,1831.7,18.34594905]
[1743274207826,7.13088834,1832.1,1831.8,0.7958]
[1743274208022,7.13088834,1832.3,1832.0,10.91702]
[1743274208225,7.13088834,1832.3,1832.1,7.42731905]
[1743274208430,4.13088834,1832.5,1832.3,5.45735]
[1743274208732,4.13088834,1832.7,1832.4,5.45717]
[1743274208932,4.13088834,1832.7,1832.4,12.88448905]
[1743274209320,4.13088834,1832.7,1832.4,7.42731905]
[1743274209529,3.0,1832.6,1832.4,7.42731905]
[1743274209833,9.58742834,1832.7,1832.4,7.42731905]
[1743274210144,3.0,1832.6,1832.4,7.42731905]
[1743274210844,0.40388245,1832.8,1832.7,5.45643]
[1743274211017,9.59183834,1832.9,1832.5,5.45685]
[1743274211219,3.0,1832.8,1832.5,5.45685]
[1743274211530,8.45702,1832.5,1832.4,7.42731905]
[1743274211708,3.0,1832.5,1832.4,7.42731905]
[1743274211910,7.13088834,1832.5,1832.4,7.42731905]
[1743274212542,12.58790834,1832.5,1832.4,7.42731905]
[1743274212913,7.13088834,1832.5,1832.4,7.42731905]
[1743274213141,12.58790834,1832.5,1832.4,7.42731905]
[1743274213312,14.39667317,1832.5,1832.4,7.42731905]
[1743274213511,14.39667317,1832.5,1831.9,11.07568]
[1743274213512,5.45798,1832.2,1832.0,7.42731905]
[1743274213713,8.45851,1832.0,1831.9,7.42731905]
[1743274214046,9.11241071,1832.0,1831.9,7.42731905]
[1743274214249,3.0,1831.9,1831.5,7.42731905]
[1743274214420,4.13088834,1831.6,1831.3,12.88788905]
[1743274214627,0.11774581,1831.5,1831.3,12.88788905]
[1743274214939,3.11774581,1831.5,1831.4,7.42731905]
[1743274215142,7.24863415,1831.5,1831.4,7.42731905]
[1743274215912,15.41238415,1831.5,1831.4,7.42731905]
[1743274216114,12.70863415,1831.5,1831.4,7.42731905]
[1743274216742,7.24863415,1831.5,1831.4,7.42731905]
[1743274217323,7.6647171,1831.5,1831.4,7.42731905]
[1743274217523,13.1247171,1831.5,1831.4,7.42731905]
[1743274218428,7.6647171,1831.5,1831.4,7.42731905]
[1743274219321,13.1247171,1831.5,1831.4,7.42731905]
[1743274219733,13.1247171,1831.5,1831.2,7.42731905]
[1743274220429,7.6647171,1831.5,1831.2,12.88809905]
[1743274221625,0.53382876,1831.5,1831.3,5.46036]
[1743274221830,0.11774581,1831.5,1831.2,14.72309796]
[1743274222724,0.11774581,1831.5,1831.2,14.72294796]
[1743274223055,0.11774581,1831.5,1831.4,5.4603]
[1743274223228,0.11774581,1831.5,1831.4,7.38913417]
[1743274223820,0.11774581,1831.5,1831.4,1.92883417]
[1743274224020,0.11774581,1831.5,1831.2,21.01513796]
[1743274224445,4.24863415,1831.5,1831.2,15.55426796]
[1743274224657,4.13088834,1831.3,1831.1,5.46118]
[1743274225220,4.13088834,1831.8,1831.2,8.25861905]
[1743274225523,4.13088834,1832.1,1831.8,5.45898]
[1743274225721,4.13088834,1832.1,1831.8,7.42731905]
[1743274225954,3.0,1832.0,1831.8,7.42731905]
[1743274226548,9.58969834,1831.9,1831.8,7.42731905]
[1743274227054,4.13088834,1831.9,1831.8,7.42731905]
[1743274227932,13.13969834,1831.9,1831.8,7.42731905]
[1743274231651,3.0,1831.5,1831.2,5.46071]
[1743274231857,7.13088834,1831.5,1831.3,7.42731905]
[1743274232059,0.23791536,1831.4,1831.3,7.42731905]
[1743274236962,0.23791536,1831.4,1831.3,12.88791905]
[1743274237299,0.23791536,1831.4,1831.2,12.88810905]
[1743274237434,0.23791536,1831.4,1831.2,7.42731905]
[1743274238980,0.23791536,1831.4,1831.2,12.88817905]
[1743274239488,0.23791536,1831.4,1831.2,7.42731905]
[1743274241365,9.59148834,1831.3,1831.2,7.42731905]
[1743274241661,8.46099,1831.2,1831.0,7.42731905]
[1743274241854,7.13088834,1831.1,1831.0,7.42731905]
[1743274242053,12.82859807,1831.1,1830.9,7.42731905]
[1743274242254,13.14237834,1831.0,1830.9,7.42731905]
[1743274242436,13.37781233,1831.0,1830.9,7.42731905]
[1743274242841,13.13726316,1831.0,1830.9,7.42731905]
[1743274243078,4.12577316,1831.0,1830.9,7.42731905]
[1743274243280,0.23543399,1831.0,1830.9,14.40624096]
[1743274243492,5.46048,1831.4,1831.0,5.46148]
[1743274243690,3.89033917,1831.1,1831.0,5.46148]
[1743274246169,3.89033917,1831.1,1831.0,7.42731905]
[1743274247065,9.35152917,1831.1,1831.0,7.42731905]
[1743274247482,3.89033917,1831.1,1831.0,7.42731905]
[1743274248569,9.35152917,1831.1,1831.0,7.42731905]
[1743274248760,14.38277309,1831.1,1831.0,7.42731905]
[1743274248954,13.83277309,1831.1,1831.0,7.42731905]
[1743274249685,12.58639433,1831.1,1831.0,7.42731905]
[1743274250992,9.58639433,1831.1,1831.0,7.42731905]
[1743274251197,4.12520433,1831.1,1831.0,7.42731905]
[1743274251507,0.23486516,1831.1,1831.0,13.68340905]
[1743274251719,3.89033917,1831.3,1831.1,5.4609]
[1743274252000,1.4313131,1831.7,1831.5,6.25442]
[1743274252324,1.4313131,1831.7,1831.6,12.88701905]
[1743274252500,3.89033917,1832.0,1831.9,5.45881]
[1743274252711,3.89033917,1832.0,1831.9,13.68072905]
[1743274252860,3.89033917,1832.0,1831.9,15.59470196]
[1743274254860,4.13036396,1832.2,1831.9,15.59470196]
[1743274255060,4.13036396,1832.2,1832.0,5.4585]
[1743274255257,4.13036396,1832.4,1832.1,5.45809]
[1743274255456,4.13036396,1832.2,1832.1,12.88540905]
[1743274255663,7.13036396,1832.2,1832.1,8.72131797]
[1743274255957,7.13036396,1832.2,1832.1,7.42731905]
[1743274256371,7.13036396,1832.2,1832.1,12.88552905]
[1743274256607,7.13036396,1832.2,1832.1,7.42731905]
[1743274258079,12.58827396,1832.2,1832.1,7.42731905]
[1743274259496,13.13827396,1832.2,1832.1,7.42731905]
[1743274260694,5.45864,1832.0,1831.6,7.42731905]
[1743274260901,7.13036396,1831.8,1831.7,7.42731905]
[1743274261682,12.58947396,1831.8,1831.7,7.42731905]
[1743274261910,7.13036396,1831.8,1831.7,7.42731905]
[1743274264617,12.83327983,1831.8,1831.7,7.42731905]
[1743274264914,5.4597,1831.6,1831.1,8.22201905]
[1743274265115,8.4608,1831.3,1831.2,10.18]
[1743274265291,13.3823864,1831.3,1830.8,6.25658]
[1743274265618,4.13036396,1831.1,1830.9,5.46168]
[1743274265787,4.13036396,1831.1,1830.9,15.64168]
[1743274265986,0.24117076,1831.0,1830.9,12.369826]
[1743274266416,0.24117076,1831.0,1830.9,17.831616]
[1743274268021,0.24117076,1831.0,1830.9,12.369826]
[1743274269302,0.24117076,1831.0,1830.9,17.831616]
[1743274269503,0.24117076,1831.0,1830.9,12.369826]
[1743274269705,0.24117076,1831.0,1830.9,10.18]
[1743274270922,0.24117076,1831.0,1830.9,15.64179]
[1743274271519,0.24117076,1831.0,1830.9,10.18]
[1743274271937,0.24117076,1831.0,1830.9,15.64179]
[1743274272525,0.24117076,1831.0,1830.9,10.18]
[1743274274993,4.13023464,1831.0,1830.9,10.18]
[1743274275197,7.13023464,1831.0,1830.9,10.18]
[1743274277925,5.46222,1830.8,1830.6,10.18]
[1743274278131,4.12237795,1830.7,1830.6,10.18]
[1743274278434,3.0,1830.6,1830.5,10.18]
[1743274278799,3.23191771,1830.6,1830.5,10.18]
[1743274279905,5.46309,1830.5,1830.3,10.18]
[1743274280109,3.88906388,1830.4,1830.3,15.64347]
[1743274280308,3.0,1831.0,1830.4,5.46317]
[1743274280515,3.0,1831.0,1830.3,16.46077]
[1743274280516,3.0,1830.7,1830.6,11.7422]
[1743274281316,3.0,1830.7,1830.6,6.27975]
[1743274281729,5.46001,1831.5,1831.0,5.46134]
[1743274281926,5.46001,1831.5,1831.3,0.7788]
[1743274281927,3.88906388,1831.5,1831.3,0.7788]
[1743274282127,3.88906388,1831.5,1831.4,5.4603]
[1743274282434,6.88906388,1831.5,1831.4,15.6403]
[1743274282644,3.88906388,1831.5,1831.4,15.6403]
[1743274283014,3.88906388,1831.5,1831.4,10.18]
[1743274283214,3.88906388,1831.5,1831.1,10.9219]
[1743274283215,3.0,1831.4,1831.1,10.18]
[1743274283429,6.88906388,1831.2,1831.1,10.18]
[1743274283631,6.88906388,1831.2,1831.1,15.64119]
[1743274283939,6.88906388,1831.2,1831.1,10.18]
[1743274284709,12.34995388,1831.2,1831.1,10.18]
[1743274285008,6.88906388,1831.2,1831.1,10.18]
[1743274287137,6.88906388,1831.2,1831.0,10.18]
[1743274287438,6.88906388,1831.2,1831.1,10.18]
[1743274288116,8.4612,1831.1,1830.9,10.9588]
[1743274288319,3.88906388,1831.0,1830.9,10.18]
[1743274288533,8.4619,1830.9,1830.6,10.18]
[1743274288760,3.0,1831.2,1830.8,0.7788]
[1743274288960,3.0,1831.3,1831.0,5.46138]
[1743274289245,3.88906388,1831.1,1831.0,15.64138]
[1743274289405,3.88906388,1831.1,1831.0,17.751694]
[1743274289607,6.88906388,1831.1,1831.0,17.751694]
[1743274290141,6.88906388,1831.1,1831.0,12.290314]
[1743274290335,6.88906388,1831.1,1831.0,15.64149]
[1743274290721,7.08385437,1831.1,1831.0,15.64149]
[1743274292407,7.08385437,1831.1,1831.0,10.18]
[1743274294326,7.08385437,1831.1,1830.8,6.24083]
[1743274294327,3.0,1831.0,1830.8,6.24083]
[1743274294525,0.19597978,1830.9,1830.8,6.29544485]
[1743274294733,0.19597978,1830.9,1830.8,8.03222434]
[1743274295254,3.0,1831.0,1830.9,5.46179]
[1743274295435,6.88906388,1831.1,1831.0,5.46149]
[1743274296350,3.88906388,1831.5,1831.1,0.8297]
[1743274296547,3.88906388,1831.7,1831.6,5.45945]
[1743274298025,3.88906388,1831.7,1831.5,5.45984]
[1743274298209,3.88906388,1831.7,1831.5,6.634821]
[1743274298416,3.88906388,1831.7,1831.6,5.4597]
[1743274299438,3.0,1831.6,1831.5,6.634821]
[1743274300053,3.0,1831.6,1831.5,6.68941458]
[1743274300546,3.0,1831.6,1831.5,6.634821]
[1743274301648,3.0,1831.6,1831.5,6.689415]
[1743274301845,3.0,1831.6,1831.4,6.28998]
[1743274302053,3.0,1831.6,1831.4,6.28988]
[1743274302921,3.88906388,1831.5,1831.4,6.28988]
[1743274303343,3.0,1831.6,1831.5,5.46]
[1743274305449,3.0,1831.6,1831.5,5.51459612]
[1743274305626,3.0,1831.6,1831.5,6.6950494]
[1743274306332,4.29647614,1831.9,1831.7,5.45924]
[1743274308839,3.0,1831.8,1831.5,6.64045561]
[1743274309045,3.88906388,1831.7,1831.5,12.10029561]
[1743274309227,3.88906388,1831.7,1831.5,1.18045561]
[1743274309561,0.19057544,1831.6,1831.4,11.74992]
[1743274309869,0.19057544,1831.6,1831.5,5.46]
[1743274310173,3.19057544,1831.6,1831.0,0.8306]
[1743274310470,3.88906388,1831.2,1831.1,5.46091]
[1743274310652,3.88906388,1831.4,1831.3,5.4606]
[1743274310828,6.88906388,1831.4,1831.3,5.4606]
[1743274311028,3.0,1831.4,1831.3,5.4606]
[1743274311772,3.88906388,1831.5,1831.4,6.2909]
[1743274312574,3.88906388,1831.5,1831.3,5.4606]
[1743274312883,3.88906388,1831.5,1831.3,0.05460043]
[1743274313175,3.88906388,1831.5,1831.3,5.51518045]
[1743274314255,3.88906388,1831.5,1831.3,0.05460045]
[1743274314652,3.88906388,1831.5,1831.2,5.46083]
[1743274316664,3.88906388,1831.4,1831.2,5.51537346]
[1743274317677,3.88906388,1831.4,1831.2,5.46077]
[1743274319009,5.46163,1831.0,1830.7,5.605]
[1743274319177,9.35118388,1830.8,1830.4,0.8306]
[1743274319376,3.88906388,1830.5,1830.3,5.46346]
[1743274319858,3.88906388,1830.5,1830.1,11.11907]
[1743274319859,9.35215388,1830.5,1830.1,11.11907]
[1743274320053,3.88906388,1830.3,1830.2,5.46388]
[1743274320489,3.88906388,1830.3,1830.1,12.860388]
[1743274320992,5.46388,1830.2,1830.1,0.05]
[1743274321150,9.01388,1830.2,1830.1,0.05]
[1743274321349,12.90294388,1830.2,1830.1,0.05]
[1743274321555,9.01388,1830.2,1830.1,0.05]
[1743274321753,12.90294388,1830.2,1830.1,0.05]
[1743274321959,3.88906388,1829.6,1829.1,0.8306]
[1743274322181,3.0,1829.7,1829.1,6.29754]
[1743274322182,3.88906388,1829.2,1829.1,6.29754]
[1743274322407,3.88906388,1829.2,1828.8,6.29853]
[1743274322590,0.55,1829.6,1829.1,5.46696]
[1743274322760,3.88906388,1829.2,1829.0,5.46745]
[1743274322965,4.14429729,1829.1,1828.9,5.46771]
[1743274323405,9.61157729,1829.1,1828.8,0.8306]
[1743274323574,4.14429729,1829.1,1828.9,5.46772]
[1743274323770,7.14429729,1829.1,1829.0,5.46731]
[1743274324074,4.14429729,1829.1,1828.9,5.46772]
[1743274324469,4.14429729,1829.1,1828.9,5.46764]
[1743274324669,0.16759991,1829.0,1828.9,5.46764]
[1743274325186,0.16759991,1829.0,1828.8,6.29866]
[1743274325388,0.16759991,1829.0,1828.8,11.76654]
[1743274325593,0.16759991,1829.0,1828.9,5.46776]
[1743274326693,0.16759991,1829.0,1828.9,5.52243391]
[1743274327372,0.16759991,1829.0,1828.9,5.46776]
[1743274327789,0.16759991,1829.0,1828.9,5.52243151]
[1743274328195,0.16759991,1829.0,1828.9,6.70452266]
[1743274328490,3.0,1829.4,1829.3,5.46649]
[1743274328890,3.16702997,1829.4,1829.3,5.46649]
[1743274329092,0.16702997,1829.4,1829.3,6.26009]
[1743274329296,0.16702997,1829.4,1829.3,6.31475075]
[1743274329599,3.16702997,1829.4,1829.3,6.26009]
[1743274330302,0.16702997,1829.4,1829.3,6.26009]
[1743274330464,0.16702997,1829.4,1829.3,6.31474934]
[1743274330665,0.16702997,1829.4,1829.3,6.26009]
[1743274330861,0.16702997,1829.4,1829.3,6.31474935]
[1743274331066,0.16702997,1829.4,1829.3,13.040784]
[1743274331607,4.14429729,1829.7,1829.5,5.46571]
[1743274331816,4.14429729,1829.7,1829.6,5.46567]
[1743274332782,4.14429729,1829.9,1829.8,5.46494]
[1743274333012,4.14429729,1829.9,1829.7,5.46536]
[1743274333871,4.14429729,1829.9,1829.5,5.46591]
[1743274334072,4.14429729,1829.7,1829.6,5.46557]
[1743274334319,4.14429729,1829.9,1829.7,5.46531]
[1743274334905,4.14429729,1829.9,1829.6,5.46557]
[1743274335099,3.0,1829.8,1829.6,5.46557]
[1743274335303,3.0,1829.8,1829.7,5.46537]
[1743274336098,7.14429729,1830.1,1829.9,5.46455]
[1743274336297,4.14429729,1830.1,1829.9,5.46455]
[1743274336796,4.14429729,1830.1,1829.8,11.72355]
[1743274337004,4.14429729,1830.1,1829.9,5.46467]
[1743274337779,4.14429729,1830.1,1829.8,11.72347]
[1743274337979,4.14429729,1830.1,1829.9,5.4646]
[1743274338190,4.14429729,1830.1,1829.8,8.1010854]
[1743274338392,4.14429729,1830.1,1829.9,5.46476]
[1743274338794,4.14429729,1830.1,1829.9,5.46466]
[1743274339111,4.14429729,1830.1,1830.0,5.46448]
[1743274339267,4.14429729,1830.3,1830.2,5.46388]
[1743274339670,4.31604105,1830.3,1830.2,5.46388]
[1743274339871,3.0,1830.2,1829.9,5.46467]
[1743274340113,4.14429729,1830.0,1829.9,10.92932]
[1743274340470,4.14429729,1830.0,1829.9,5.46465]
[1743274340788,7.73529548,1830.0,1829.7,5.46512]
[1743274341025,4.14429729,1829.8,1829.7,5.46512]
[1743274341168,4.31790501,1829.8,1829.7,5.46512]
[1743274341703,4.31790501,1829.8,1829.6,6.25383]
[1743274341874,4.31790501,1829.8,1829.6,11.71935]
[1743274342199,4.31790501,1829.8,1829.6,6.25372]
[1743274342800,4.31790501,1829.8,1829.6,11.71921]
[1743274343003,4.31790501,1829.8,1829.6,10.93101]
[1743274343498,4.31790501,1829.8,1829.6,5.46549]
[1743274344307,3.0,1829.7,1829.4,6.25446]
[1743274344479,4.14429729,1829.6,1829.3,5.46644]
[1743274344684,4.14429729,1829.4,1829.3,5.46644]
[1743274344917,3.89572285,1829.4,1829.3,5.46644]
[1743274345203,5.46275,1830.6,1830.2,5.46374]
[1743274345499,3.89572285,1830.3,1830.0,5.46433]
[1743274345811,3.89572285,1830.0,1829.9,5.46477]
[1743274346103,3.89572285,1830.0,1829.9,7.197173]
[1743274346308,3.89572285,1830.0,1829.9,5.46477]
[1743274349284,3.0,1830.2,1830.1,5.46418]
[1743274349494,3.0,1830.2,1830.0,5.46446]
[1743274349698,3.89572285,1830.1,1830.0,5.46446]
[1743274351204,3.89572285,1830.1,1829.9,5.46476]
[1743274351386,3.89572285,1830.1,1829.9,10.92934]
[1743274351592,3.89572285,1830.1,1829.9,5.46458]
[1743274352001,3.89572285,1830.1,1830.0,5.46448]
[1743274352206,3.0,1830.2,1830.1,5.46418]
[1743274352584,3.11604161,1830.2,1830.1,5.46418]
[1743274353379,3.11604161,1830.2,1829.9,5.46468]
[1743274353579,3.89572285,1830.0,1829.9,5.46468]
[1743274353787,3.89572285,1830.2,1830.0,5.46438]
[1743274354010,0.11604161,1830.1,1830.0,5.46438]
[1743274354315,3.89572285,1830.2,1830.0,5.46438]
[1743274354611,0.11604161,1830.1,1830.0,5.46438]